Cogmind - Beta 16 @@@ ROGUE MODE // 2025.11.24 @ 20:13:32 Player: Maxfecteau Result: Destroyed by NG-57B(R) with Subdweller Laser Performance ------------- Evolutions (0) 0 Regions Visited (2) 400 Robots Destroyed (29) 145 Value Destroyed (599) 599 Prototype IDs (0) 0 Alien Tech Used (0) 0 Bonus (0) 0 TOTAL SCORE: 1144 Bonus ------- None Cogmind --------- Core Integrity 0/250 Matter 221/300 Energy 250/250 System Corruption 3% Temperature Cool (6) Movement Treading (160) Location -10/Subcaves Parts ------- > --- POWER (1) -------- Ion Engine > --- PROPULSION (2) --- Light Treads Light Treads > --- UTILITY (2) ------ Large Storage Unit Seismic Detector > --- WEAPON (2) ------- Rocket Launcher > --- INVENTORY (15) --- Light Ion Engine Light Treads Light Treads Small Storage Unit Small Matter Pod (24) Seismic Detector ECM Suite Datajack Plasma Cutter Peak State ------------ > --- POWER ------------ Ion Engine > --- PROPULSION ------- Light Treads Light Treads > --- UTILITY ---------- Small Storage Unit Seismic Detector > --- WEAPON ----------- Light Assault Rifle Rocket Launcher > --- INVENTORY -------- Light Ion Engine Improved Terrain Scanner Seismic Detector EM Pulse Gun Medium Laser Rocket Launcher Mining Laser Plasma Cutter [Rating: 9] Favorites ----------- Power Ion Engine Engine Ion Engine Propulsion Light Treads Treads Light Treads Utility Seismic Detector Device Seismic Detector Storage Small Storage Unit Weapon Assault Rifle Energy Gun Medium Laser Ballistic Gun Assault Rifle Launcher Rocket Launcher Build | -11 -10 -10 ------- Run | Yrd Mat Sub Slots Evolved . | . . . Power . | . . . Propulsion . | . . . Utility . | . . . Weapon . | . . . Parts Attached 21 | 8 10 3 Power 3 | 1 2 . Engine 3 | 1 2 . Core . | . . . Reactor . | . . . Propulsion 4 | 2 2 . Treads 4 | 2 2 . Leg . | . . . Wheel . | . . . Hover . | . . . Flight . | . . . Utility 5 | 2 3 . Device 1 | 1 . . Storage 4 | 1 3 . Processor . | . . . Hackware . | . . . Protection . | . . . Artifact . | . . . Weapon 9 | 3 3 3 Energy Gun 2 | 2 . . Energy Cannon . | . . . Ballistic Gun 3 | 1 1 1 Ballistic Cannon . | . . . Launcher 4 | . 2 2 Special Weapon . | . . . Impact Weapon . | . . . Slashing Weapon . | . . . Piercing Weapon . | . . . Special Melee Weapon . | . . . Unidentified Prototypes . | . . . Parts Lost 8 | . 3 5 Power 2 | . 2 . Propulsion . | . . . Utility . | . . . Weapon 6 | . 1 5 Highest Loss Streak 2 | . 2 2 To Critical Strikes . | . . . Average Backups 9 | 2 9 11 Power . | . . 1 Propulsion 1 | . . 2 Utility 3 | . 3 4 Weapon 2 | 1 3 2 Tool/Special . | . . . Unused Backups 14 | 1 5 8 Power 2 | . 1 1 Propulsion 2 | . . 2 Utility 5 | 1 1 3 Weapon 3 | . 3 . Tool/Special 2 | . . 2 Average Slot Usage (%) 99 | . 99 98 Engine 13 | . 13 14 Treads 28 | . 28 28 Device 14 | . 14 14 Storage 14 | . 14 14 Energy Gun 2 | . 2 1 Ballistic Gun 14 | . 14 17 Launcher 10 | . 11 7 Peak Build Rating 9 | 7 9 9 Average Rating 8 | 5 8 8 On Entrance 5 | . 7 9 Avg Prop Armor Cover (%) . | . . . Naked Turns . | . . . Heaviest Build 32 | 14 32 32 Greatest Support 40 | 40 40 40 Greatest Overweight (x) . | . . . Average Overweight (x) . | . . . Largest Inventory Capacity 15 | 8 15 15 Average Capacity 10 | 7 10 15 Most Carried 12 | 5 12 12 Average Carried 9 | 2 9 11 Final Capacity 15 | 8 15 15 Final Carried 12 | 5 12 9 Class Distribution -------------------- 100% | Mutant Dominant Class ---------------- Mutant | -10/Materials Mutant | -10/Subcaves Resources | -11 -10 -10 ----------- Run | Yrd Mat Sub Matter Collected 689 | 294 336 59 Remotely . | . . . Salvage Created 619 | 162 393 64 Parts 47 | 11 34 2 Haulers Intercepted 2 | . 2 . Recyclers Shooed 2 | 1 1 . Parts Field Recycled . | . . . Retrieved Matter . | . . . Parts Self-Destructed . | . . . Prevented . | . . . Parts Restored . | . . . Kills | -11 -10 -10 ------- Run | Yrd Mat Sub Combat Hostiles Destroyed 15 | . 13 2 Guns 4 | . 3 1 AOE 11 | . 10 1 Classes Destroyed 9 | 2 6 1 Worker 1 | . 1 . Tunneler 4 | 4 . . Hauler 2 | . 2 . Recycler 1 | 1 . . Operator 3 | . 3 . Watcher 3 | . 3 . Swarmer 6 | . 6 . Grunt 7 | . 7 . Subdweller 2 | . . 2 Best Kill Streak 5 | 2 5 1 Combat Bots Only 3 | . 3 1 Max Kills in Single Turn 3 | 1 3 1 Gunslinging . | . . . Exploded 3 | . 3 1 Melee . | . . . Uniques/NPCs Destroyed . | . . . Combat | -11 -10 -10 -------- Run | Yrd Mat Sub Hostile Shots Fired 81 | . 49 32 Missed 24 | . 14 10 Hits 57 | . 35 22 Projectile 57 | . 35 22 AOE 3 | . . 3 Critical Strikes 1 | . . 1 Damage Taken 1278 | . 642 636 Core 253 | . 146 107 Absorbed by Shields . | . . . Core Remaining (%) 100 | 100 . . Volleys Fired 85 | 14 61 10 Largest 2 | 2 2 2 Hottest 70 | 70 70 60 Shots Fired 110 | 28 65 17 Gun 96 | 28 55 13 Cannon . | . . . Launcher 14 | . 10 4 Special . | . . . Kinetic 76 | 14 52 10 Thermal 13 | 10 3 . Explosive 14 | . 10 4 Electromagnetic 7 | 4 . 3 Robot Hit Streak 10 | 8 10 8 Robot Miss Streak 2 | 2 2 1 Penetration Max . | . . . Secondary Targets . | . . . Shots Hit Robots 78 | 19 46 13 Core Hits 47 | 8 33 6 Critical Kills . | . . . Critical Parts Destroyed . | . . . Critical Strikes . | . . . Melee Attacks . | . . . Impact . | . . . Slashing . | . . . Piercing . | . . . Sneak Attacks . | . . . Combat Hostiles . | . . . Follow-up Attacks . | . . . Damage Inflicted 2103 | 194 1444 465 Guns 788 | 194 464 130 Cannons . | . . . Explosions 1315 | . 980 335 Melee . | . . . Ramming . | . . . Kinetic 584 | 60 425 99 Thermal 194 | 97 97 . Explosive 1257 | . 922 335 Electromagnetic 68 | 37 . 31 Impact . | . . . Slashing . | . . . Piercing . | . . . Highest Corruption 3 | . 3 3 Average Corruption 2 | . 2 3 Corruption Purged . | . . . Corruption Blocked . | . . . Effects 15 | . 4 11 Message Errors 6 | . 1 5 Matter Fused 3 | . 1 2 Heat Flow Errors 1 | . . 1 Energy Discharges 3 | . 2 1 Data Loss (major) 1 | . . 1 Misfires 1 | . . 1 Overload Shots . | . . . Overflow Damage 14 | . 14 . Projectiles . | . . . Explosions 14 | . 14 . Melee . | . . . Knockbacks . | . . . Impact . | . . . Kinetic . | . . . Secondary . | . . . Self-Inflicted Damage 302 | . 231 71 Shots 7 | . 5 2 Rammed . | . . . Targets Rammed . | . . . Kicked . | . . . Crushed . | . . . Highest Temperature 76 | 50 40 76 Average Temperature 19 | 21 13 56 Received Heat Transfer 231 | . 189 42 Siege Activations . | . . . Martial Activations . | . . . Shielding Activations . | . . . Robots Disrupted . | . . . Combat Hostiles . | . . . Robots Corrupted . | . . . Combat Hostiles . | . . . Parts Fried . | . . . Impact Corruptions . | . . . Robots Melted . | . . . Combat Hostiles . | . . . Parts Melted . | . . . Heat Transferred 457 | 296 161 . Parts Sabotaged . | . . . Parts Stolen . | . . . Parts Stripped . | . . . Power Chain Reactions . | . . . Alert | -11 -10 -10 ------- Run | Yrd Mat Sub Maximum Alert Level 1 | . 1 . Low Security (%) 95 | 100 94 . Level 1 4 | . 5 . Level 2 . | . . . Level 3 . | . . . Level 4 . | . . . Level 5 . | . . . High Security . | . . . Max Security . | . . . Peak Influence 222 | 5 222 . Initial . | . . . Average 96 | 1 111 . Influence Increases 595 | 25 570 . Destroy 0b10 Robot/C 260 | . 260 . Destroy 0b10 Robot/NC 70 | 25 45 . Destroy Leader 80 | . 80 . Successful Hack 12 | . 12 . Disable Machine 90 | . 90 . Destroy Structure 83 | . 83 . Influence Decreases 595 | 25 441 129 Entered New Map 63 | . . 63 Time Decay 502 | 25 411 66 Lost Part 30 | . 30 . Squads Dispatched 3 | . 3 . Investigation 1 | . 1 . Extermination . | . . . Reinforcement 2 | . 2 . Assault . | . . . Garrison . | . . . Intercept . | . . . Searches Triggered . | . . . Construction Impeded . | . . . Haulers Reinforced . | . . . Active Scanning Responses . | . . . Cargo Convoy Interrupts . | . . . Stealth | -11 -10 -10 --------- Run | Yrd Mat Sub Distress Signals 1 | . 1 . Communications Jammed . | . . . Distress Signals . | . . . Times Spotted 28 | . 22 6 Peak Tracking Total 4 | . 4 3 Tactical Retreats . | . . . Traps | -11 -10 -10 ------- Run | Yrd Mat Sub Traps Triggered 2 | . 2 . Indirectly . | . . . Trap Hack Attempts . | . . . Triggered . | . . . Disarmed . | . . . Reprogrammed . | . . . Reused . | . . . Traps Extracted . | . . . Installed . | . . . Triggered . | . . . Machines | -11 -10 -10 ---------- Run | Yrd Mat Sub Machines Disabled 6 | . 6 . Max in Single Turn 2 | . 2 . Machines Repaired . | . . . Machines Dismantled . | . . . Machines Sabotaged . | . . . Overloaded Fab Kills . | . . . Hacking | -11 -10 -10 --------- Run | Yrd Mat Sub Machines Accessed 8 | . 6 2 Terminals 6 | . 6 . Fabricators . | . . . Repair Stations . | . . . Recycling Units . | . . . Scanalyzers . | . . . Garrison Access . | . . . Total Hacks 16 | . 13 3 Successful 7 | . 4 3 Failed 9 | . 9 . Catastrophic 1 | . 1 . Database Lockouts . | . . . Manual 15 | . 15 . Terminals 13 | . 13 . Fabricators . | . . . Repair Stations . | . . . Recycling Units . | . . . Scanalyzers . | . . . Garrison Access . | . . . Terminal Hacks 7 | . 4 3 Record 1 | . . 1 Robot Analysis 4 | . 4 . Open Door 1 | . . 1 Release Object 1 | . . 1 Fabricator Hacks . | . . . Repair Station Hacks . | . . . Recycling Unit Hacks . | . . . Scanalyzer . | . . . Garrison Access Hacks . | . . . Unauthorized Hacks . | . . . Terminals . | . . . Fabricators . | . . . Repair Stations . | . . . Recycling Units . | . . . Scanalyzers . | . . . Garrison Access . | . . . Data Cores Recovered . | . . . Used . | . . . Hacking Detections 6 | . 6 . Full Trace Events 2 | . 2 . Feedback Events . | . . . Feedback Blocked . | . . . Robot Schematics Acquired . | . . . Robots Built . | . . . Authchips . | . . . Time . | . . . Total Robot Build Rating . | . . . Part Schematics Acquired . | . . . Parts Built . | . . . Authchips . | . . . Time . | . . . Total Part Build Rating . | . . . Part Studies Acquired . | . . . Parts Repaired . | . . . Time . | . . . Parts Recycled . | . . . Recycled Matter . | . . . Retrieved Matter . | . . . Retrieved Components . | . . . Parts Scanalyzed . | . . . Part Schematics Acquired . | . . . Parts Damaged . | . . . Bothacking | -11 -10 -10 ------------ Run | Yrd Mat Sub Used RIF Installer . | . . . Robots Hacked . | . . . Non-combat . | . . . Combat . | . . . Robot Hacks Applied . | . . . Relay Couplers Released . | . . . Fabnet Peak Effective % . | . . . Robots Rewired . | . . . Allies Hacked . | . . . Hacks Repelled . | . . . Allies | -11 -10 -10 -------- Run | Yrd Mat Sub Total Allies . | . . . Largest Group . | . . . Highest-Rated Group . | . . . Highest-Rated Ally . | . . . Total Orders . | . . . Ally Attacks . | . . . Total Damage . | . . . Kills . | . . . Allies Corrupted . | . . . Allies Melted . | . . . Intel | -11 -10 -10 ------- Run | Yrd Mat Sub Active Infowar (turns) 1798 | 38 1315 445 Seismic 1798 | 38 1315 445 Robot Analysis Total 4 | . 4 . Derelict Logs Recovered . | . . . Drone Launches . | . . . Drone Recoveries . | . . . Exploration | -11 -10 -10 ------------- Run | Yrd Mat Sub Turns Passed 1969 | 208 1316 445 Spaces Moved 1012 | 113 653 246 Core 32 | 32 . . Treads 980 | 81 653 246 Legs . | . . . Wheels . | . . . Hover . | . . . Flight . | . . . Fastest Speed 50 | 50 160 160 Average Speed 156 | 128 160 160 Slowest Speed 160 | 160 160 160 Overloaded Moves . | . . . Propulsion Burnouts . | . . . Robots Hopped . | . . . Potential Cave-ins . | . . . Cave-ins Triggered . | . . . Exploration Rate (%) 36 | 6 88 16 Regions Visited 2 Branch Regions 1 Pre-discovered Areas . | . . . Known Exits Taken . | . . . Unknown Exits Taken 2 | 1 1 . Scrap Searched . | . . . Spaces Dug 13 | . 13 . Terrain Destroyed 127 | . 99 28 Melee . | . . . Projectile . | . . . AOE 127 | . 99 28 Terrain Rammed . | . . . Walls Destroyed . | . . . Machines Disabled . | . . . Actions | -11 -10 -10 --------- Run | Yrd Mat Sub Total 1301 | 150 868 283 Wait 138 | 3 115 20 Move 1010 | 112 652 246 Hop . | . . . Pick Up 29 | 12 17 . Fast Attach 3 | 1 . 2 Attach 12 | 6 3 3 Detach 1 | . . 1 Swap 9 | 1 8 . Drop 14 | 1 12 1 Fire 85 | 14 61 10 Melee . | . . . Ram . | . . . Kick . | . . . Crush . | . . . Escape Stasis . | . . . Rewire . | . . . Trap . | . . . Miscellaneous . | . . . Route ------- -11/Scrapyard -10/Materials (discovered 5 exits: [*Mat x3] / [*Min] / *Sub) -10/Subcaves (discovered 1 exit: [*Mat]) History --------- Turn | Location | Event 4 | -11/Scrapyard | Discovered new exit (range 16) 209 | -11/Scrapyard | Entered Materials 305 | -10/Materials | Build established: Mutant 305 | -10/Materials | Discovered new exit (range 14) 553 | -10/Materials | Discovered new exit (range 16) 1239 | -10/Materials | Discovered new exit (range 7) 1303 | -10/Materials | Core integrity fell below 50% 1438 | -10/Materials | Discovered new exit (range 10) 1504 | -10/Materials | Discovered new exit (range 8) 1525 | -10/Materials | Entered Subcaves 1527 | -10/Subcaves | Ambushed by Subdwellers from Twisted Machinery 1905 | -10/Subcaves | Discovered new exit (range 9) 1969 | -10/Subcaves | Core integrity fell below 20% 1970 | -10/Subcaves | Ambushed by Subdweller buried in earth 1970 | -10/Subcaves | Destroyed by NG-57B(R) with Subdweller Laser Last Messages --------------- 01740_ Rocket Launcher destroyed. 01741_ System corrupted: Matter fused (-10). 01766_ UFD SUBCON Station disabled. 01766_ Machine disabled. 01767_ RY-UM0(R) destroyed. 01771_ Acquired 38 matter. 01786_ Acquired Grenade Launcher. 01789_ Acquired 21 matter. 01798_ Grenade Launcher destroyed. 01800_ EM Pulse Gun destroyed. 01824_ LKWRKVC> Q6B3,L:C9LLJ AE 2I 01857_ System corrupted: Energy discharge (-50). 01905_ EXIT=FOUND 01908_ System corrupted: Matter fused (-10). 01956_ System corrupted: Substantial component data lost. 01958_ Assault Rifle destroyed. 01965_ Dropped Rocket Launcher. 01966_ Acquired Rocket Launcher. 01969_ Assault Rifle destroyed. 01970_ ET-AOK(R) destroyed. Map ----- +----------------------------------------------------+ | ?????????????????????????# ### | | ??????????????????????#### ## ## ### | | ??????????????????????# ####### | | ??????????????????????## #?????# | | ???????????????????????## ##?????# | | ????????????????????????## ##?###??# | | ?????????????????????????# ### #??# ## #### | | ?????????????????????????## #?# ####??? | | ??????????????????????????## ### #?????? | | ?????????????????##????????# #? #?????? | | ?????????????????# #??????#### #?# ??????? | | ?????????????????# ########## ###? ??????? | | ?????????????????# # #???##?????? | | ?????????????????? """"" ##? #?????? | | ??????????????????#""""< ## ## #?????? | | ??????????????????#""""" #### ##?????? | | ??????????????????#""""" ###### #?????? | | ??????????????????#"""" ## ### #######?????? | | ??????????????????# ## # #???????????? | | ??????????????????# ## # ## #???????????? | | ???????????????#### ## #? #???????????? | | ??????????????## ## # #???????????? | | ??????????????# #####???# #???????????? | | ??????????????# #??????? " ???????????? | | ??????????????## RR #??????? $"???????????? | | ???????????????## %@#???????? ###??????????? | | ????????????????# R & ?????????????????????? | | ????????????????# "" ##????????????????????? | | ????????????????####""###?????????????????????? | | ???????????????????####???????????????????????? | | ??????????????????????????????????????????????? | | ??????????????????????????????????????????????? | | ??????????????????????????????????????????????? | | ??????????????????????????????????????????????? | | ??????????????????????????????????????????????? | | ??????????????????????????????????????????????? | | ??????????????????????????????????????????????? | | ??????????????????????????????????????????????? | | ??????????????????????????????????????????????? | | ??????????????????????????????????????????????? | | ??????????????????????????????????????????????? | | ??????????????????????????????????????????????? | | ??????????????????????????????????????????????? | | ??????????????????????????????????????????????? | | ??????????????????????????????????????????????? | | ??????????????????????????????????????????????? | | ??????????????????????????????????????????????? | | ??????????????????????????????????????????????? | | ??????????????????????????????????????????????? | | ??????????????????????????????????????????????? | +----------------------------------------------------+ Best States ------------- Heat Dissipation 25 Energy Generation 10 Energy Capacity 250 Matter Stores 300 Matter Capacity 300 Sight Range 16 Terrain Scan Density 10 Evasion (%) 50 Recoil Reduction 2 Item Schematics ----------------- None Robot Schematics ------------------ None Fabricated ------------ Nothing Repaired ---------- Nothing Studied --------- None Alien Tech Used ----------------- None Achievements -------------- None Challenges ------------ None Game ------ Seed ServoAlertMiniperforator Manual? 0 Play Time 00:26:36 Cumulative 38.2 hours Start 2025.11.24 @ 19:43:27 End 2025.11.24 @ 20:13:32 Sessions 1 Manual Loads 0 Difficulty Rogue Special Mode None Game No. 31 Rogue 31 Adventurer 0 Explorer 0 Win Type - Total 1 Types 1/0/0/0/0/0/0/0/0/0 Lore% 33 Gallery% 32 Achievement% 29 Wizard Run 0 Options --------- Layout 0 ASCII 0 Keyboard 1 Movement Arrows Keybinds 0 Fullscreen 2 Font 18/SmallcapsGlow Map View 76x50 Zoom Use 0% Tactical HUD 1 Map Filters NONE Filters NONE Steam 1 RUN: 26fd54f0-d0ba-42a0-95c5-882d2556031d